fUST/lending_fUST_20241223
["ID","MTS","AMOUNT","RATE_DAILY","PERIOD"]
[346374647,1734921033108,-300.0,0.00013697,2]
[346374648,1734921033119,-500.0,0.00013697,2]
[346374649,1734921033131,-500.0,0.00013697,2]
[346374650,1734921033141,-226.14164979,0.00013697,2]
[346374651,1734921033151,-500.0,0.00013697,2]
[346374652,1734921033162,-169.41821363,0.00013697,2]
[346374653,1734921033173,-500.0,0.00013697,2]
[346374654,1734921033183,-500.0,0.00013698,2]
[346374655,1734921033194,-404.01019005,0.00013698,2]
[346374656,1734921033204,-500.0,0.00013698,2]
[346374657,1734921033214,-500.0,0.00013698,2]
[346374658,1734921033224,-500.0,0.00013698,2]
[346374659,1734921033235,-603.23218243,0.00013698,2]
[346374660,1734921033245,-500.0,0.00013698,2]
[346374661,1734921033255,-876.54,0.00013698,2]
[346374662,1734921033265,-500.0,0.00013698,2]
[346374663,1734921033275,-658.0,0.00013698,2]
[346374664,1734921033285,-503.26235958,0.00013698,2]
[346374665,1734921033295,-500.0,0.00013698,2]
[346374666,1734921033306,-500.0,0.00013698,2]
[346374667,1734921033316,-12062.27,0.00013698,2]
[346374668,1734921033326,-1645.09,0.00013698,2]
[346374669,1734921033338,-870.19,0.00013698,2]
[346374670,1734921033348,-503.13441157,0.00013698,2]
[346374671,1734921033357,-500.0,0.00013698,2]
[346374672,1734921033367,-887.6,0.00013698,2]
[346374673,1734921033378,-500.0,0.00013698,2]
[346374674,1734921033388,-500.0,0.00013698,2]
[346374675,1734921033398,-500.0,0.00013698,2]
[346374676,1734921033407,-500.0,0.00013698,2]
[346374677,1734921033418,-500.0,0.00013698,2]
[346374678,1734921033428,-500.0,0.00013698,2]
[346374679,1734921033439,-923.49,0.00013698,2]
[346374680,1734921033450,-500.0,0.00013698,2]
[346374681,1734921033460,-4122.71,0.00013698,2]
[346374682,1734921033470,-500.0,0.00013698,2]
[346374683,1734921033480,-566.16,0.00013698,2]
[346374684,1734921033491,-500.0,0.00013698,2]
[346374685,1734921033500,-500.0,0.00013698,2]
[346374686,1734921033510,-500.0,0.00013698,2]
[346374687,1734921033520,-500.0,0.00013698,2]
[346374688,1734921033530,-500.0,0.00013698,2]
[346374689,1734921033540,-500.0,0.00013698,2]
[346374690,1734921033550,-3660.1,0.00013698,2]
[346374691,1734921033560,-500.0,0.00013698,2]
[346374692,1734921033571,-500.0,0.00013698,2]
[346374693,1734921033583,-500.0,0.00013698,2]
[346374694,1734921033593,-500.0,0.00013698,2]
[346374695,1734921033603,-512.97,0.00013698,2]
[346374696,1734921033613,-500.0,0.00013698,2]
[346374697,1734921033622,-500.0,0.00013698,2]
[346374698,1734921033632,-676.74,0.00013698,2]
[346374699,1734921033645,-500.0,0.00013698,2]
[346374700,1734921033655,-593.06,0.00013698,2]
[346374701,1734921033665,-1502.53361202,0.00013698,2]
[346374702,1734921033679,-159.44638798,0.00013698,2]
[346374703,1734921033689,-503.7335256,0.00013698,2]
[346374704,1734921033699,-500.0,0.00013698,2]
[346374705,1734921033709,-278.05083881,0.00013698,2]
[346374756,1734921038848,-500.0,0.00013697,2]
[346374759,1734921038858,-500.0,0.00013697,2]
[346374761,1734921038867,-500.0,0.00013697,2]
[346374763,1734921038877,-500.0,0.00013697,2]
[346374765,1734921038887,-500.0,0.00013697,2]
[346374767,1734921038896,-191.19064562,0.00013697,2]
[346374768,1734921038906,-203.80066626,0.00013697,2]
[346374770,1734921038915,-221.94916119,0.00013698,2]
[346374773,1734921038925,-1204.89,0.00013698,2]
[346374774,1734921038935,-501.80677034,0.00013698,2]
[346374776,1734921038944,-500.0,0.00013698,2]
[346374778,1734921038954,-502.35117717,0.00013698,2]
[346374780,1734921038964,-500.0,0.00013698,2]
[346374798,1734921039125,-500.0,0.00013698,2]
[346374800,1734921039135,-500.0,0.00013698,2]
[346374802,1734921039145,-588.85,0.00013698,2]
[346374803,1734921039154,-500.0,0.00013698,2]
[346374806,1734921039164,-588.34277672,0.00013698,2]
[346374807,1734921039173,-2227.75,0.00013698,2]
[346374809,1734921039183,-1280.99373445,0.00013698,2]
[346374971,1734921041071,-3764.47626555,0.00013698,2]
[346374973,1734921041080,-612.21,0.00013698,2]
[346374975,1734921041093,-500.0,0.00013698,2]
[346374977,1734921041103,-2664.93,0.00013698,2]
[346374979,1734921041113,-500.0,0.00013698,2]
[346374981,1734921041122,-526.81,0.00013698,2]
[346374983,1734921041131,-122.5257132,0.00013698,2]
[346375098,1734921042257,-970.4542868,0.00013698,2]
[346375101,1734921042267,-500.0,0.00013698,2]
[346375102,1734921042275,-500.0,0.00013698,2]
[346375105,1734921042285,-500.0,0.00013698,2]
[346375107,1734921042295,-709.1,0.00013698,2]
[346375109,1734921042304,-500.0,0.00013698,2]
[346375111,1734921042313,-500.0,0.00013698,2]
[346375112,1734921042322,-500.0,0.00013698,2]
[346375115,1734921042332,-502.19852317,0.00013698,2]
[346375116,1734921042343,-500.0,0.00013698,2]
[346375118,1734921042352,-500.0,0.00013698,2]
[346375120,1734921042361,-1461.97,0.00013698,2]
[346375122,1734921042371,-841.72,0.00013698,2]
[346375124,1734921042380,-500.0,0.00013698,2]
[346375126,1734921042389,-500.0,0.00013698,2]
[346375129,1734921042399,-500.0,0.00013698,2]
[346375131,1734921042408,-225.81285566,0.00013698,2]
[346375132,1734921042417,-500.0,0.00013698,2]
[346375133,1734921042427,-500.0,0.00013698,2]
[346375134,1734921042436,-502.43941716,0.00013698,2]
[346375135,1734921042447,-500.0,0.00013698,2]
[346375136,1734921042456,-553.01114796,0.00013972,2]
[346375137,1734921042468,-12252.0810693,0.00013972,2]
[346375138,1734921042478,-500.0,0.00013972,2]
[346375139,1734921042488,-500.0,0.00013972,2]
[346375140,1734921042498,-429.25500581,0.00013972,2]
[346375141,1734921042508,-500.0,0.00013972,2]
[346375142,1734921042519,-500.0,0.00013972,2]
[346375143,1734921042528,-500.0,0.00013972,2]
[346375144,1734921042538,-500.0,0.00013972,2]
[346375145,1734921042548,-151.0,0.00013972,2]
[346375146,1734921042558,-243.791161,0.00013972,2]
[346375147,1734921042568,-2614.87276389,0.00013972,2]
[346375297,1734921044032,-559.4,0.00013698,2]
[346375299,1734921044043,-500.0,0.00013698,2]
[346375301,1734921044052,-4554.68723611,0.00013972,2]
[346375303,1734921044062,-868.84,0.00013972,2]
[346375305,1734921044072,-500.0,0.00013972,2]
[346375307,1734921044081,-500.0,0.00013972,2]
[346375309,1734921044095,-739.904404,0.00013972,2]
[346375311,1734921044104,-739.904404,0.00013972,2]
[346375313,1734921044114,-739.904404,0.00013972,2]
[346375315,1734921044124,-374.00838868,0.00013972,2]
[346375317,1734921044136,-365.89601532,0.00013972,2]
[346375319,1734921044145,-500.0,0.00013972,2]
[346375321,1734921044155,-500.0,0.00013972,2]
[346375323,1734921044164,-500.0,0.00013972,2]
[346375325,1734921044173,-876.54,0.00013972,2]
[346375327,1734921044183,-612.63660317,0.00013972,2]
[346375329,1734921044192,-504.35734479,0.00013972,2]
[346375331,1734921044202,-658.0,0.00013972,2]
[346375333,1734921044211,-500.0,0.00013972,2]
[346375335,1734921044221,-4537.90454235,0.00013972,2]
[346375392,1734921051100,-500.0,0.00013698,2]
[346375393,1734921051109,-500.0,0.00013698,2]
[346375394,1734921051118,-500.0,0.00013698,2]
[346375395,1734921051127,-796.43,0.00013698,2]
[346375396,1734921051137,-7524.36545765,0.00013972,2]
[346375397,1734921051147,-500.0,0.00013972,2]
[346375398,1734921051156,-1645.09,0.00013972,2]
[346375399,1734921051165,-870.19,0.00013972,2]
[346375400,1734921051174,-500.0,0.00013972,2]
[346375401,1734921051184,-887.6,0.00013972,2]
[346375402,1734921051193,-500.0,0.00013972,2]
[346375403,1734921051202,-500.0,0.00013972,2]
[346375404,1734921051211,-500.0,0.00013972,2]
[346375405,1734921051220,-500.0,0.00013972,2]
[346375406,1734921051229,-513.00229033,0.00013972,2]
[346375407,1734921051239,-923.49,0.00013972,2]
[346375408,1734921051247,-500.0,0.00013972,2]
[346375409,1734921051257,-4122.71,0.00013972,2]
[346375410,1734921051266,-203.545469,0.00013972,2]
[346375411,1734921051275,-500.0,0.00013972,2]
[346375412,1734921051285,-203.545469,0.00013972,2]
[346375413,1734921051294,-566.16,0.00013972,2]
[346375414,1734921051304,-203.545469,0.00013972,2]
[346375415,1734921051313,-203.545469,0.00013972,2]
[346375416,1734921051322,-500.0,0.00013972,2]
[346375417,1734921051331,-500.0,0.00013972,2]
[346375418,1734921051340,-500.0,0.00013972,2]
[346375419,1734921051351,-203.545469,0.00013972,2]
[346375420,1734921051360,-203.545469,0.00013972,2]
[346375421,1734921051370,-500.0,0.00013972,2]
[346375422,1734921051379,-203.545469,0.00013972,2]
[346375423,1734921051388,-203.545469,0.00013972,2]
[346375424,1734921051397,-500.0,0.00013972,2]
[346375425,1734921051407,-500.0,0.00013972,2]
[346375426,1734921051416,-3660.1,0.00013972,2]
[346375427,1734921051426,-500.0,0.00013972,2]
[346375428,1734921051435,-500.0,0.00013972,2]
[346375429,1734921051444,-500.0,0.00013972,2]
[346375430,1734921051455,-512.97,0.00013972,2]
[346375431,1734921051465,-500.0,0.00013972,2]
[346375432,1734921051474,-500.0,0.00013972,2]
[346375433,1734921051484,-676.74,0.00013972,2]
[346375434,1734921051493,-593.06,0.00013972,2]
[346375435,1734921051503,-1661.98,0.00013972,2]
[346375436,1734921051513,-500.0,0.00013972,2]
[346375437,1734921051523,-500.0,0.00013972,2]
[346375438,1734921051532,-1204.89,0.00013972,2]
[346375439,1734921051542,-423.86987387,0.00013972,2]
[346375440,1734921051552,-313.28494256,0.00013972,2]
[346375441,1734921051687,-186.71505744,0.00013972,2]
[346375442,1734921051697,-500.0,0.00013972,2]
[346375443,1734921051707,-500.0,0.00013972,2]
[346375444,1734921051716,-588.85,0.00013972,2]
[346375445,1734921051725,-500.0,0.00013972,2]
[346375446,1734921051735,-2227.75,0.00013972,2]
[346375447,1734921051744,-5045.47,0.00013972,2]
[346375448,1734921051754,-612.21,0.00013972,2]
[346375449,1734921051764,-500.0,0.00013972,2]
[346375450,1734921051773,-2664.93,0.00013972,2]
[346375451,1734921051782,-526.81,0.00013972,2]
[346375452,1734921051791,-1092.98,0.00013972,2]
[346375453,1734921051800,-500.0,0.00013972,2]
[346375454,1734921051809,-500.0,0.00013972,2]
[346375455,1734921051819,-709.1,0.00013972,2]
[346375456,1734921051829,-500.0,0.00013972,2]
[346375457,1734921051838,-500.0,0.00013972,2]
[346375458,1734921051849,-500.0,0.00013972,2]
[346375459,1734921051859,-630.66997627,0.00013972,2]
[346375460,1734921051868,-1461.97,0.00013972,2]
[346375461,1734921051877,-841.72,0.00013972,2]
[346375462,1734921051886,-500.0,0.00013972,2]
[346375463,1734921051895,-500.0,0.00013972,2]
[346375464,1734921051904,-344.65123193,0.00013972,2]
[346375465,1734921051914,-500.0,0.00013972,2]
[346375466,1734921051923,-559.4,0.00013972,2]
[346375467,1734921051933,-500.0,0.00013972,2]
[346375468,1734921051943,-500.0,0.00013972,2]
[346375469,1734921051952,-500.0,0.00013972,2]
[346375470,1734921051961,-796.43,0.00013972,2]
[346375471,1734921051971,-400.0,0.00013973,2]
[346375472,1734921051980,-826.506,0.0001405,2]
[346375473,1734921051990,-160.0,0.00014063,3]
[346375474,1734921051999,-160.0,0.00014112,4]
[346375475,1734921052009,-666.0,0.00014146,2]
[346375476,1734921052018,-160.0,0.00014161,5]
[346375477,1734921052028,-451.0,0.000142,5]
[346375478,1734921052038,-239.9638086,0.000142,2]
[346375479,1734921052047,-160.0,0.0001421,6]
[346375480,1734921052057,-170.52806889,0.00014245,2]
[346375481,1734921052066,-505.34698753,0.00014246,2]
[346375482,1734921052075,-500.0,0.00014246,2]
[346375483,1734921052085,-151.0,0.00014246,2]
[346375484,1734921052096,-151.0,0.00014246,2]
[346375485,1734921052106,-500.0,0.00014246,2]
[346375486,1734921052115,-500.0,0.00014246,2]
[346375487,1734921052124,-500.0,0.00014246,2]
[346375488,1734921052134,-500.0,0.00014246,2]
[346375489,1734921052143,-500.0,0.00014246,2]
[346375490,1734921052153,-500.0,0.00014246,2]
[346375491,1734921052163,-684.2,0.00014246,7]
[346375492,1734921052172,-377.39579627,0.00014246,2]
[346375493,1734921052181,-812.05,0.00014246,2]
[346375494,1734921052191,-500.0,0.00014246,2]
[346375495,1734921052200,-500.0,0.00014246,2]
[346375496,1734921052209,-500.0,0.00014246,2]
[346375497,1734921052219,-500.0,0.00014246,2]
[346375498,1734921052229,-500.0,0.00014246,2]
[346375499,1734921052238,-500.0,0.00014246,2]
[346375500,1734921052248,-500.0,0.00014246,2]
[346375501,1734921052258,-500.0,0.00014246,2]
[346375502,1734921052267,-500.0,0.00014246,2]
[346375503,1734921052277,-500.0,0.00014246,2]
[346375504,1734921052286,-500.0,0.00014246,2]
[346375505,1734921052296,-500.0,0.00014246,2]
[346375506,1734921052305,-500.0,0.00014246,2]
[346375507,1734921052315,-500.0,0.00014246,2]
[346375508,1734921052324,-151.0,0.00014246,2]
[346375509,1734921052333,-151.0,0.00014246,2]
[346375510,1734921052345,-500.0,0.00014246,2]
[346375511,1734921052354,-847.73,0.00014246,2]
[346375512,1734921052364,-379.94992317,0.00014246,2]
[346375513,1734921052373,-500.0,0.00014246,2]
[346375514,1734921052382,-500.0,0.00014246,2]
[346375515,1734921052392,-500.0,0.00014246,2]
[346375516,1734921052401,-500.0,0.00014246,2]
[346375517,1734921052411,-151.0,0.00014246,2]
[346375518,1734921052420,-151.0,0.00014246,2]
[346375519,1734921052429,-870.52,0.00014246,2]
[346375520,1734921052439,-1200.5,0.00014246,2]
[346375521,1734921052448,-500.0,0.00014246,2]
[346375522,1734921052458,-641.01644178,0.00014246,2]
[346375523,1734921052467,-500.0,0.00014246,2]
[346375524,1734921052476,-500.0,0.00014246,2]
[346375525,1734921052486,-777.170347,0.00014246,2]
[346375526,1734921052495,-777.170347,0.00014246,2]
[346375527,1734921052505,-500.0,0.00014246,2]
[346375528,1734921052515,-777.170347,0.00014246,2]
[346375529,1734921052524,-777.170347,0.00014246,2]
[346375530,1734921052534,-504.35973396,0.00014246,2]
[346375531,1734921052543,-500.0,0.00014246,2]
[346375532,1734921052558,-594.17,0.00014246,2]
[346375533,1734921052567,-500.0,0.00014246,2]
[346375534,1734921052576,-500.0,0.00014246,2]
[346375535,1734921052585,-151.0,0.00014246,2]
[346375536,1734921052600,-151.0,0.00014246,2]
[346375537,1734921052610,-151.0,0.00014246,2]
[346375538,1734921052619,-500.0,0.00014246,2]
[346375539,1734921052630,-500.0,0.00014246,2]
[346375540,1734921052639,-127.21379092,0.00014246,2]
[346375542,1734921223327,353.11,0.00022,120]
[346375585,1734922232396,-300.0,0.00012524,2]
[346375586,1734922232405,-300.0,0.00012524,2]
[346375587,1734922232415,-3750.30441566,0.00012525,2]
[346375659,1734922238133,-3954.98622749,0.00012525,2]
[346375673,1734922238389,-354.38050827,0.00012525,2]
[346375675,1734922238400,-495.1143853,0.00012525,2]
[346375732,1734922240151,-9406.29975,0.00012525,2]
[346375733,1734922240163,-1364.12763544,0.00012525,2]
[346375754,1734922246243,-3777.90385694,0.00012525,2]
[346375755,1734922246253,-197.31284846,0.0001345,2]
[346375756,1734922246262,-500.0,0.00013499,2]
[346375757,1734922246272,-500.0,0.00013499,2]
[346375758,1734922246282,-500.0,0.00013499,2]
[346375759,1734922246291,-500.0,0.00013499,2]
[346375760,1734922246302,-500.0,0.00013499,2]
[346375761,1734922246311,-500.0,0.00013499,2]
[346375762,1734922246324,-500.0,0.00013499,2]
[346375763,1734922246333,-500.0,0.00013499,2]
[346375764,1734922246343,-500.0,0.00013499,2]
[346375765,1734922246352,-500.0,0.00013499,2]
[346375766,1734922246362,-500.0,0.00013499,2]
[346375767,1734922246371,-500.0,0.00013499,2]
[346375768,1734922246380,-500.0,0.00013499,2]
[346375769,1734922246390,-500.0,0.00013499,2]
[346375770,1734922246400,-500.0,0.00013499,2]
[346375771,1734922246409,-500.0,0.00013499,2]
[346375772,1734922246419,-500.0,0.00013499,2]
[346375773,1734922246428,-500.0,0.00013499,2]
[346375774,1734922246438,-341.11084486,0.00013499,2]
[346375775,1734922246447,-500.0,0.00013499,2]
[346375776,1734922246456,-500.0,0.00013499,2]
[346375777,1734922246466,-500.0,0.00013499,2]
[346375778,1734922246476,-500.0,0.00013499,2]
[346375779,1734922246486,-500.0,0.00013499,2]
[346375780,1734922246496,-500.0,0.00013499,2]
[346375781,1734922246505,-500.0,0.00013499,2]
[346375782,1734922246515,-500.0,0.00013499,2]
[346375783,1734922246524,-500.0,0.00013499,2]
[346375784,1734922246535,-500.0,0.00013499,2]
[346375785,1734922246546,-500.0,0.00013499,2]
[346375786,1734922246555,-500.0,0.00013499,2]
[346375787,1734922246568,-500.0,0.00013499,2]
[346375788,1734922246578,-500.0,0.00013499,2]
[346375789,1734922246588,-500.0,0.00013499,2]
[346375790,1734922246598,-500.0,0.00013499,2]
[346375791,1734922246607,-500.0,0.00013499,2]
[346375792,1734922246617,-500.0,0.00013499,2]
[346375793,1734922246627,-500.0,0.00013499,2]
[346375794,1734922246637,-500.0,0.00013499,2]
[346375795,1734922246646,-559.6562539,0.00013499,2]
[346375796,1734922246656,-500.0,0.00013499,2]
[346375797,1734922246665,-500.0,0.00013499,2]
[346375798,1734922246674,-500.0,0.00013499,2]
[346375799,1734922246683,-500.0,0.00013499,2]
[346375800,1734922246693,-500.0,0.00013499,2]
[346375801,1734922246702,-500.0,0.00013499,2]
[346375802,1734922246711,-500.0,0.00013499,2]
[346375803,1734922246721,-500.0,0.00013499,2]
[346375804,1734922246730,-500.0,0.00013499,2]
[346375805,1734922246739,-500.0,0.00013499,2]
[346375806,1734922246924,-500.0,0.00013499,2]
[346375807,1734922246935,-500.0,0.00013499,2]
[346375808,1734922246944,-505.96562539,0.00013499,2]
[346375809,1734922246954,-300.0,0.000135,2]
[346375810,1734922246964,-300.0,0.000135,3]
[346375811,1734922246974,-300.0,0.000135,3]
[346375812,1734922246983,-300.0,0.000135,2]
[346375813,1734922246993,-300.0,0.000135,4]
[346375814,1734922247003,-82943.18375145,0.000135,2]
[346375815,1734922247016,-42799.66991259,0.000135,2]
[346375816,1734922247026,-196.10403568,0.00013598,2]
[346375817,1734922247035,-852.75645458,0.00013598,2]
[346375818,1734922247045,-539.29119127,0.00013644,2]
[346375819,1734922247055,-501.76233091,0.00013698,2]
[346375820,1734922247064,-500.0,0.00013698,2]
[346375821,1734922247075,-500.0,0.00013698,2]
[346375822,1734922247084,-505.32848219,0.00013698,2]
[346375823,1734922247094,-503.17724979,0.00013698,2]
[346375824,1734922247104,-168.68008355,0.00013698,2]
[346375825,1734922247114,-531.64382805,0.00013698,2]
[346375826,1734922247123,-502.1516899,0.00013698,2]
[346375827,1734922247143,-503.83949052,0.00013698,2]
[346375828,1734922247159,-503.25709962,0.00013698,2]
[346375829,1734922247169,-500.0,0.00013698,2]
[346375830,1734922247179,-500.0,0.00013698,2]
[346375831,1734922247189,-480.0,0.00013698,2]
[346375832,1734922247198,-529.19,0.00013698,2]
[346375833,1734922247208,-454.46736974,0.00013698,2]
[346375834,1734922247217,-500.0,0.00013698,2]
[346375835,1734922247227,-500.0,0.00013698,2]
[346375836,1734922247236,-500.0,0.00013698,2]
[346375837,1734922247246,-577.64,0.00013698,2]
[346375838,1734922247255,-504.39297556,0.00013698,2]
[346375839,1734922247265,-500.0,0.00013698,2]
[346375840,1734922247275,-397.32356141,0.00013698,2]
[346375841,1734922247284,-500.0,0.00013698,2]
[346375842,1734922247294,-500.0,0.00013698,2]
[346375843,1734922247303,-500.0,0.00013698,2]
[346375844,1734922247312,-500.0,0.00013698,2]
[346375845,1734922247323,-372.28437588,0.00013698,2]
[346375846,1734922247333,-500.0,0.00013698,2]
[346375847,1734922247342,-500.0,0.00013698,2]
[346375848,1734922247352,-500.0,0.00013698,2]
[346375849,1734922247362,-500.0,0.00013698,2]
[346375850,1734922247372,-500.0,0.00013698,2]
[346375851,1734922247381,-500.0,0.00013698,2]
[346375852,1734922247391,-500.0,0.00013698,2]
[346375853,1734922247399,-256.98198987,0.00013698,2]
[346375854,1734922247409,-615.59440247,0.00013698,2]
[346375855,1734922247418,-500.0,0.00013698,2]
[346375856,1734922247427,-500.0,0.00013698,2]
[346375857,1734922247436,-417.95744496,0.00013698,2]
[346375858,1734922247447,-500.0,0.00013698,2]
[346375859,1734922247456,-500.0,0.00013698,2]
[346375860,1734922247465,-500.0,0.00013698,2]
[346375861,1734922247474,-500.0,0.00013698,2]
[346375862,1734922247484,-362.35684032,0.00013698,2]
[346375863,1734922247493,-500.0,0.00013698,2]
[346375864,1734922247502,-500.0,0.00013698,2]
[346375865,1734922247512,-500.0,0.00013698,2]
[346375866,1734922247522,-379.81828953,0.00013698,2]
[346375867,1734922247532,-500.0,0.00013698,2]
[346375868,1734922247541,-500.0,0.00013698,2]
[346375869,1734922247551,-508.27302679,0.00013698,2]
[346375870,1734922247560,-502.93450461,0.00013698,2]
[346375871,1734922247572,-566.99975707,0.00013698,2]
[346375872,1734922247581,-503.12390539,0.00013698,2]
[346375873,1734922247590,-500.0,0.00013698,2]
[346375874,1734922247599,-500.0,0.00013698,2]
[346375875,1734922247609,-780.23,0.00013698,2]
[346375876,1734922247618,-500.0,0.00013698,2]
[346375877,1734922247628,-500.0,0.00013698,2]
[346375878,1734922247637,-500.0,0.00013698,2]
[346375879,1734922247646,-168.0,0.00013698,2]
[346375880,1734922247656,-500.0,0.00013698,2]
[346375881,1734922247666,-801.16,0.00013698,2]
[346375882,1734922247675,-250.28220406,0.00013698,2]
[346375883,1734922247684,-500.0,0.00013698,2]
[346375884,1734922247694,-500.0,0.00013698,2]
[346375885,1734922247703,-1104.89,0.00013698,2]
[346375886,1734922247713,-500.0,0.00013698,2]
[346375887,1734922247723,-308.44195376,0.00013698,2]
[346375888,1734922247732,-500.0,0.00013698,2]
[346375889,1734922247742,-500.0,0.00013698,2]
[346375890,1734922247752,-519.9,0.00013698,2]
[346375891,1734922247762,-500.0,0.00013698,2]
[346375892,1734922247772,-500.0,0.00013698,2]
[346375893,1734922247781,-500.0,0.00013698,2]
[346375894,1734922247792,-500.0,0.00013698,2]
[346375895,1734922247801,-500.0,0.00013698,2]
[346375896,1734922247811,-500.0,0.00013698,2]
[346375897,1734922247823,-500.0,0.00013698,2]
[346375898,1734922247832,-500.0,0.00013698,2]
[346375899,1734922247842,-500.0,0.00013698,2]
[346375900,1734922247851,-500.0,0.00013698,2]
[346375901,1734922247860,-500.0,0.00013698,2]
[346375902,1734922247870,-319.6295196,0.00013698,2]
[346375903,1734922247880,-505.91613174,0.00013698,2]
[346375904,1734922247893,-247.9534123,0.00013698,2]
[346375905,1734922247903,-596.81650256,0.00013698,2]
[346375906,1734922247913,-500.0,0.00013698,2]
[346375907,1734922247923,-500.0,0.00013698,2]
[346375908,1734922247933,-521.96,0.00013698,2]
[346375909,1734922247942,-347.62179326,0.00013698,2]
[346375910,1734922247952,-500.0,0.00013698,2]
[346375911,1734922247962,-572.94,0.00013698,2]
[346375912,1734922247974,-500.0,0.00013698,2]
[346375913,1734922247983,-614.91935202,0.00013698,2]
[346375914,1734922247993,-500.0,0.00013698,2]
[346375915,1734922248002,-548.41409556,0.00013698,2]
[346375916,1734922248012,-500.0,0.00013698,2]
[346375917,1734922248022,-500.0,0.00013698,2]
[346375918,1734922248032,-500.0,0.00013698,2]
[346375919,1734922248042,-500.0,0.00013698,2]
[346375920,1734922248052,-382.31232193,0.00013698,2]
[346375921,1734922248063,-500.0,0.00013698,2]
[346375922,1734922248076,-501.88985988,0.00013698,2]
[346375923,1734922248088,-500.0,0.00013698,2]
[346375924,1734922248100,-500.0,0.00013698,2]
[346375925,1734922248111,-500.0,0.00013698,2]
[346375926,1734922248122,-32070.17,0.00013698,2]
[346375927,1734922248133,-500.0,0.00013698,2]
[346375928,1734922248143,-500.0,0.00013698,2]
[346375929,1734922248154,-349.31841243,0.00013698,2]
[346375930,1734922248164,-500.0,0.00013698,2]
[346375931,1734922248175,-500.0,0.00013698,2]
[346375932,1734922248185,-500.0,0.00013698,2]
[346375933,1734922248195,-2190.7,0.00013698,2]
[346375934,1734922248205,-500.0,0.00013698,2]
[346375935,1734922248214,-500.0,0.00013698,2]
[346375936,1734922248224,-500.0,0.00013698,2]
[346375937,1734922248233,-500.0,0.00013698,2]
[346375938,1734922248243,-500.0,0.00013698,2]
[346375939,1734922248253,-1085.43,0.00013698,2]
[346375940,1734922248263,-803.49,0.00013698,2]
[346375941,1734922248273,-500.0,0.00013698,2]
[346375942,1734922248283,-1508.0,0.00013698,2]
[346375943,1734922248293,-11057.08,0.00013698,2]
[346375944,1734922248303,-500.0,0.00013698,2]
[346375945,1734922248312,-797.67,0.00013698,2]
[346375946,1734922248327,-603.16,0.00013698,2]
[346375947,1734922248337,-500.0,0.00013698,2]
[346375948,1734922248347,-500.0,0.00013698,2]
[346375949,1734922248357,-813.63,0.00013698,2]
[346375950,1734922248367,-500.0,0.00013698,2]
[346375951,1734922248377,-500.0,0.00013698,2]
[346375952,1734922248387,-500.0,0.00013698,2]
[346375953,1734922248396,-846.53,0.00013698,2]
[346375954,1734922248407,-500.0,0.00013698,2]
[346375955,1734922248416,-3779.16,0.00013698,2]
[346375956,1734922248426,-500.0,0.00013698,2]